bitfinex-derivatives/quotes_SOLF0:USTF0_20241021
["timestamp","ask_amount","ask_price","bid_price","bid_amount"]
[1729490510726,4.46,169.6,169.53,1.47557823]
[1729490510929,4.46,169.6,169.54,1.47557823]
[1729490510930,2.9497,169.55,169.54,1.47557823]
[1729490511130,4.46,169.6,169.54,1.47557823]
[1729490511325,4.46,169.6,169.49,2.6495]
[1729490511634,2.9493,169.57,169.51,2.9502]
[1729490511825,2.9493,169.57,169.52,1.47564736]
[1729490512022,2.9493,169.57,169.53,1.47564736]
[1729490512231,2.9495,169.56,169.52,2.9502]
[1729490512535,2.9495,169.56,169.53,1.47567907]
[1729490512739,2.9495,169.56,169.49,1.3408]
[1729490512929,2.9495,169.56,169.51,2.9502]
[1729490513131,4.46,169.6,169.52,1.47567271]
[1729490513329,2.9494,169.57,169.53,1.47567271]
[1729490513527,2.9494,169.57,169.49,1.3408]
[1729490513733,2.9494,169.57,169.5,1.4756701]
[1729490513932,2.9494,169.57,169.51,1.4756701]
[1729490514135,2.949,169.59,169.52,1.4756701]
[1729490514432,2.949,169.59,169.53,1.4756701]
[1729490514631,2.949,169.59,169.54,1.4756701]
[1729490514931,2.949,169.59,169.49,1.3408]
[1729490515130,2.949,169.59,169.5,1.47564503]
[1729490515330,2.949,169.59,169.51,1.47564503]
[1729490515531,2.9493,169.58,169.52,1.47564503]
[1729490515730,2.9493,169.58,169.49,1.3408]
[1729490515731,2.9493,169.58,169.53,1.47564503]
[1729490515934,2.9493,169.58,169.49,1.3408]
[1729490516135,2.9493,169.58,169.52,2.95]
[1729490516336,1.3266,169.59,169.53,1.47566995]
[1729490516637,2.9496,169.56,169.48,4.46]
[1729490516934,7.4096,169.56,169.51,2.9502]
[1729490517131,7.4096,169.56,169.52,1.47569249]
[1729490517332,7.4096,169.56,169.53,1.47569249]
[1729490517536,7.4096,169.56,169.51,2.9502]
[1729490517735,7.4096,169.56,169.52,1.4756914]
[1729490517930,7.4096,169.56,169.53,1.4756914]
[1729490518129,7.4096,169.56,169.52,2.9501]
[1729490518325,7.4096,169.56,169.53,1.47569301]
[1729490518533,7.4096,169.56,169.52,2.9501]
[1729490518834,7.4096,169.56,169.53,1.4756914]
[1729490519034,7.4096,169.56,169.52,2.9501]
[1729490519432,7.4096,169.56,169.53,1.47569153]
[1729490519737,7.4096,169.56,169.52,2.9501]
[1729490519939,7.4096,169.56,169.53,1.47569314]
[1729490520332,7.4096,169.56,169.52,2.9501]
[1729490520644,7.4096,169.56,169.53,1.47569314]
[1729490520842,7.4096,169.56,169.52,2.9501]
[1729490521032,7.4096,169.56,169.53,1.47569314]
[1729490521033,4.46,169.56,169.53,1.47569314]
[1729490521234,4.46,169.56,169.52,2.9501]
[1729490521541,4.46,169.56,169.53,1.47568318]
[1729490521837,7.4095,169.56,169.52,2.9501]
[1729490522133,3.9007,169.59,169.54,2.9498]
[1729490522338,4.46,169.58,169.54,2.9498]
[1729490524035,7.4092,169.58,169.54,2.9498]
[1729490525539,2.9493,169.57,169.53,2.95]
[1729490526029,4.46,169.58,169.48,4.46]
[1729490526230,2.9494,169.57,169.49,1.47566725]
[1729490526434,2.9494,169.57,169.5,1.47566725]
[1729490526635,2.9494,169.57,169.51,1.47566725]
[1729490526836,2.9494,169.57,169.52,1.47566725]
[1729490527044,2.9494,169.57,169.53,4.42556725]
[1729490527248,2.9494,169.57,169.53,2.9499]
[1729490527937,4.46,169.58,169.48,4.46]
[1729490528146,7.4092,169.58,169.49,1.47567878]
[1729490528332,7.4092,169.58,169.5,1.47567878]
[1729490528533,7.4092,169.58,169.53,2.9499]
[1729490528938,7.4092,169.58,169.48,4.46]
[1729490529134,7.4092,169.58,169.53,2.9499]
[1729490530147,7.4092,169.58,169.48,4.46]
[1729490530444,7.4092,169.58,169.49,1.47568213]
[1729490530642,7.4092,169.58,169.53,2.9499]
[1729490531239,4.46,169.58,169.53,2.9499]
[1729490531543,2.9493,169.57,169.53,2.9499]
[1729490532944,2.9493,169.57,169.48,4.46]
[1729490533242,2.9493,169.57,169.49,1.47567192]
[1729490533440,2.9493,169.57,169.48,4.46]
[1729490533641,2.9493,169.57,169.53,2.9499]
[1729490533836,4.46,169.58,169.5,1.47568725]
[1729490534034,6.8498,169.59,169.51,1.47568725]
[1729490534035,11.3098,169.59,169.51,1.47568725]
[1729490534241,8.3607,169.59,169.54,2.9497]
[1729490535740,2.9492,169.58,169.54,2.9497]
[1729490535946,8.3607,169.59,169.55,2.9496]
[1729490536158,8.3607,169.59,169.48,4.46]
[1729490536347,8.3607,169.59,169.49,1.47561923]
[1729490536539,8.3607,169.59,169.5,1.47561923]
[1729490536739,8.3607,169.59,169.51,1.47561923]
[1729490536943,8.3607,169.59,169.52,1.47561923]
[1729490537150,8.3607,169.59,169.53,1.47561923]
[1729490537444,8.3607,169.59,169.54,1.47561923]
[1729490537746,8.3607,169.59,169.48,4.46]
[1729490537944,2.9492,169.58,169.54,2.9498]
[1729490538944,2.9492,169.58,169.48,4.46]
[1729490539149,2.9492,169.58,169.49,1.47561236]
[1729490539450,2.9492,169.58,169.5,1.47561236]
[1729490539651,2.9492,169.58,169.51,1.47561236]
[1729490539852,2.9492,169.58,169.54,2.9497]
[1729490540752,5.7666,169.59,169.55,1.47554634]
[1729490540948,4.44,169.59,169.48,4.46]
[1729490541152,7.389,169.59,169.55,2.9496]
[1729490541446,4.44,169.59,169.47,4.18485778]
[1729490541651,4.44,169.59,169.52,2.9502]
[1729490541652,2.9495,169.56,169.52,2.9502]
[1729490541854,4.44,169.59,169.53,1.47564646]
[1729490542055,4.44,169.59,169.54,1.47564645]
[1729490542254,4.44,169.59,169.49,4.44]
[1729490542550,4.44,169.59,169.5,1.47565984]
[1729490542851,7.389,169.59,169.53,2.9499]
[1729490543055,7.389,169.59,169.54,1.47565984]
[1729490543352,7.389,169.59,169.49,4.44]
[1729490543556,7.389,169.59,169.5,1.4756544]
[1729490543752,7.389,169.59,169.51,1.4756544]
[1729490543954,7.389,169.59,169.52,1.4756544]
[1729490544255,7.389,169.59,169.53,1.4756544]
[1729490544552,7.389,169.59,169.54,1.4756544]
[1729490544753,7.389,169.59,169.49,4.44]
[1729490544958,4.44,169.59,169.55,2.9496]
[1729490545253,3.8812,169.64,169.47,4.18485778]
[1729490545455,3.8812,169.64,169.48,5.91535564]
[1729490545456,4.44,169.63,169.48,5.91535564]
[1729490545649,4.44,169.63,169.49,1.47535564]
[1729490545852,2.9485,169.62,169.5,1.47535564]
[1729490546149,2.9485,169.62,169.51,1.47535564]
[1729490546356,4.44,169.63,169.52,8.53685564]
[1729490546552,2.9367863,169.74,169.53,7.23715564]
[1729490546754,2.9367863,169.74,169.58,2.949]
[1729490546755,4.44,169.7,169.58,2.949]
[1729490547063,3.773,169.73,169.59,5.91535564]
[1729490547064,2.9478,169.66,169.59,5.91535564]
[1729490547249,2.9478,169.66,169.6,1.47535564]
[1729490547449,2.9478,169.66,169.61,1.47535564]
[1729490547656,2.9478,169.66,169.59,4.44]
[1729490547861,2.9478,169.66,169.62,2.9484]
[1729490548053,2.9477,169.67,169.62,2.9484]
[1729490548254,2.9477,169.67,169.59,4.44]
[1729490548454,4.44,169.69,169.63,2.9482]
[1729490548851,2.9476,169.67,169.63,2.9482]
[1729490549252,2.9474,169.68,169.58,3.01553652]
[1729490549558,2.9474,169.68,169.64,2.9481]
[1729490549759,2.9474,169.68,169.59,7.34380182]
[1729490550056,2.9474,169.68,169.6,1.47500533]
[1729490550252,4.44,169.69,169.59,7.34380182]
[1729490550457,4.44,169.69,169.6,1.47488144]
[1729490550658,4.44,169.69,169.61,1.47488144]
[1729490550859,7.3874,169.69,169.63,2.9481]
[1729490551059,2.9474,169.69,169.59,7.34380182]
[1729490551257,2.9474,169.69,169.6,1.47485965]
[1729490551464,2.9474,169.69,169.63,2.9481]
[1729490551662,2.9474,169.69,169.59,7.34380182]
[1729490551862,2.9474,169.69,169.6,1.47479112]
[1729490552160,2.9474,169.69,169.61,1.47479112]
[1729490552362,2.9474,169.69,169.62,1.47479112]
[1729490552563,2.9474,169.69,169.63,1.47479112]
[1729490552860,2.9474,169.69,169.64,2.948]
[1729490553256,3.773,169.73,169.59,7.34380182]
[1729490553458,3.773,169.73,169.66,2.9477]
[1729490553459,4.44,169.72,169.66,2.9477]
[1729490554055,2.9469,169.71,169.66,2.9478]
[1729490554461,3.773,169.73,169.63,4.44]
[1729490554666,7.3863,169.75,169.7,2.947]
[1729490554862,4.44,169.75,169.63,4.44]
[1729490555160,4.44,169.76,169.64,5.91450349]
[1729490555459,4.44,169.76,169.65,1.47450349]
[1729490555665,7.3861,169.76,169.7,2.9469]
[1729490556058,3.8404,169.78,169.68,7.46089184]
[1729490556558,8.2804,169.78,169.68,7.46089184]
[1729490556962,7.0512,169.78,169.68,7.46089184]
[1729490557269,4.44,169.81,169.69,2.6445]
[1729490557455,4.44,169.81,169.74,2.9462]
[1729490557456,2.9455,169.79,169.74,2.9462]
[1729490557860,2.946,169.77,169.71,2.9468]
[1729490558363,2.946,169.77,169.7,4.44]
[1729490558563,2.946,169.77,169.72,2.9466]
[1729490559767,2.9457,169.78,169.73,2.9465]
[1729490560165,2.9457,169.78,169.7,4.44]
[1729490560366,1.327,169.8,169.7,4.44]
[1729490560769,2.4983,169.82,169.7,4.44]
[1729490560961,1.2691,169.82,169.7,4.44]
[1729490562471,2.9454,169.8,169.7,4.44]
[1729490563168,2.9452,169.81,169.76,2.9459]
[1729490564368,2.9452,169.81,169.77,2.9458]
[1729490564569,4.2141,169.82,169.77,2.9458]
[1729490564765,4.2141,169.82,169.74,4.44]
[1729490564766,1.2691,169.82,169.74,4.44]
[1729490564964,1.2691,169.82,169.79,2.9454]
[1729490565169,1.2691,169.82,169.74,4.44]
[1729490565470,1.2691,169.82,169.77,2.9457]
[1729490566472,2.9454,169.8,169.74,4.44]
[1729490566667,1.2691,169.82,169.74,4.44]
[1729490567268,2.9452,169.81,169.76,2.946]
[1729490567969,4.2141,169.82,169.77,2.9458]
[1729490568364,1.2691,169.82,169.69,3.8651]
[1729490568567,1.2691,169.82,169.7,4.44]
[1729490569074,2.9453,169.81,169.7,4.44]
[1729490571871,2.9453,169.81,169.76,2.946]
[1729490572072,1.2691,169.82,169.7,4.44]
[1729490572277,2.5937,169.87,169.7,4.44]
[1729490572670,4.44,169.86,169.7,4.44]
[1729490572875,2.9451,169.82,169.71,4.44]
[1729490573070,2.9451,169.82,169.72,4.44]
[1729490573370,2.9451,169.82,169.77,2.9457]
[1729490575172,2.9451,169.82,169.78,2.9456]
[1729490579576,2.9448,169.83,169.79,2.9455]
[1729490579876,7.0337,169.87,169.76,4.44]
[1729490580275,1.3442,169.88,169.83,2.9448]
[1729490581069,1.3442,169.88,169.8,4.44]
[1729490581274,4.2883,169.88,169.8,4.44]
[1729490582977,2.9441,169.87,169.83,2.9448]
[1729490583977,1.3442,169.88,169.8,4.44]
[1729490584280,1.2189,169.91,169.8,4.44]
[1729490584474,5.6589,169.91,169.8,4.44]
[1729490584672,2.9436,169.9,169.85,2.9443]
[1729490584977,1.2189,169.91,169.8,4.44]
[1729490585879,4.1623,169.91,169.86,2.9442]
[1729490586184,1.2189,169.91,169.82,4.44]
[1729490587074,2.9438,169.89,169.85,2.9444]
[1729490590781,4.1623,169.91,169.86,2.9442]
[1729490590980,4.1623,169.91,169.82,4.44]
[1729490591487,4.1623,169.91,169.86,2.9442]
[1729490591885,4.1623,169.91,169.82,4.44]
[1729490592979,2.9433,169.92,169.87,2.9441]
[1729490597585,2.9431,169.93,169.88,2.9438]
[1729490597982,69.4818,170.06,169.86,4.44]
[1729490598185,2.9425,169.97,169.92,2.9431]
[1729490598790,11.19177492,170.0,169.92,2.9431]
[1729490598991,8.2999,170.0,169.92,2.9431]
[1729490600890,2.9426,169.96,169.92,2.9431]
[1729490602488,2.9426,169.96,169.93,2.9431]
[1729490602786,3.8599,170.0,169.86,4.44]
[1729490602991,4.44,169.99,169.86,4.44]
[1729490603380,63.6,170.06,169.86,4.44]
[1729490603583,4.44,170.05,169.86,4.44]
[1729490603786,2.9414,170.03,169.98,2.9422]
[1729490604290,20.70671907,170.04,169.91,4.44]
[1729490604492,20.70671907,170.04,169.91,7.39873747]
[1729490604690,20.70671907,170.04,169.91,4.44]
[1729490605090,20.70671907,170.04,169.93,2.9429]
[1729490605892,20.70671907,170.04,169.9,4.44]
[1729490607289,2.9419,170.0,169.91,2.9433]
[1729490607488,6.9362,169.99,169.91,2.9433]
[1729490607891,6.9362,169.99,169.9,4.44]
[1729490608193,2.9426,169.96,169.92,2.9432]
[1729490608595,6.9362,169.99,169.9,4.44]
[1729490608795,6.9362,169.99,169.91,2.9434]
[1729490609499,6.9362,169.99,169.9,4.44]
[1729490609896,6.9362,169.99,169.83,3.8949]
[1729490610095,1.2255,169.98,169.84,4.44]
[1729490611210,2.9426,169.96,169.91,2.9434]
[1729490611709,1.2255,169.98,169.83,3.8949]
[1729490612006,2.943,169.94,169.89,2.9437]
[1729490617013,1.2255,169.98,169.89,2.9437]
[1729490617214,1.2255,169.98,169.9,2.9435]
[1729490617514,2.9429,169.95,169.9,2.9435]
[1729490619111,1.2255,169.98,169.88,4.44]
[1729490620018,1.2255,169.98,169.89,2.9437]
[1729490621814,2.943,169.94,169.89,2.9437]
[1729490622914,2.943,169.94,169.87,4.44]
[1729490623221,2.943,169.94,169.89,2.9437]
[1729490623523,2.9434,169.92,169.86,4.44]
[1729490623912,2.9434,169.92,169.87,2.944]
[1729490626011,2.9434,169.92,169.88,2.9439]
[1729490630014,2.9437,169.9,169.86,2.9442]
[1729490630521,2.9437,169.9,169.83,2.5482]
[1729490630820,2.9437,169.9,169.85,2.9443]
[1729490631021,2.9437,169.9,169.83,2.5482]
[1729490631220,2.9437,169.9,169.83,6.9882]
[1729490631424,2.9437,169.9,169.85,2.9444]
[1729490631625,2.9437,169.9,169.83,6.9882]
[1729490632021,7.44879307,169.95,169.83,6.9882]
[1729490632224,2.9433,169.92,169.83,6.9882]
[1729490632618,2.9433,169.92,169.85,2.9443]
[1729490632820,2.9431,169.93,169.83,6.9882]
[1729490633324,2.9432,169.92,169.83,6.9882]
[1729490634025,2.9432,169.92,169.87,2.944]
[1729490635027,2.9432,169.92,169.88,2.9439]
[1729490638022,2.9427,169.96,169.91,2.9434]
[1729490638223,4.44,169.96,169.91,2.9434]
[1729490638623,7.3827,169.96,169.91,2.9434]
[1729490639025,4.44,169.96,169.91,2.9434]
[1729490639227,2.9428,169.95,169.91,2.9434]
[1729490640228,4.44,169.96,169.91,2.9434]
[1729490640229,7.3827,169.96,169.91,2.9434]
[1729490640734,2.9428,169.95,169.91,2.9434]
[1729490641328,2.9428,169.95,169.9,2.9435]
[1729490643330,2.9431,169.93,169.89,2.9438]
[1729490646035,4.44,169.96,169.88,2.9439]
[1729490646533,2.943,169.94,169.88,2.9439]
[1729490646729,4.44,169.96,169.88,2.9439]
[1729490647335,2.9432,169.93,169.86,4.44]
[1729490647934,2.9432,169.93,169.88,2.9438]
[1729490648433,4.44,169.96,169.88,2.9438]
[1729490648832,2.943,169.94,169.88,2.9438]
[1729490649026,4.44,169.96,169.88,2.9438]
[1729490649635,2.9432,169.93,169.88,2.9438]
[1729490650131,2.9432,169.93,169.9,2.9436]
[1729490650339,2.9432,169.93,169.85,4.44]
[1729490650534,2.9432,169.93,169.86,1.47271012]
[1729490650731,2.9432,169.93,169.88,2.9439]
[1729490656543,2.943,169.94,169.88,2.9439]
[1729490656739,4.44,169.96,169.88,2.9439]
[1729490657042,2.9432,169.93,169.88,2.9439]
[1729490659042,2.9431,169.93,169.88,2.9438]
[1729490662048,2.9431,169.93,169.86,2.9442]
[1729490662241,2.9431,169.93,169.87,1.47271417]
[1729490662436,2.9431,169.93,169.84,5.7273]
[1729490662643,4.44,169.96,169.85,1.47270409]
[1729490662843,2.9431,169.93,169.86,1.47270409]
[1729490663148,2.9431,169.93,169.87,1.47270409]
[1729490663347,2.9431,169.93,169.88,1.47270409]
[1729490663544,2.9431,169.93,169.84,5.7273]
[1729490663742,2.9431,169.93,169.88,2.9439]
[1729490664948,2.9431,169.93,169.84,5.7073]
[1729490665145,2.9431,169.93,169.89,2.9437]
[1729490676160,4.42,169.94,169.84,5.7073]
[1729490676161,2.9435,169.91,169.87,2.944]
[1729490676556,4.42,169.94,169.88,1.47278246]
[1729490676759,4.42,169.94,169.86,2.9442]
[1729490676963,1.2238,169.93,169.86,2.9442]
[1729490677360,2.9435,169.91,169.86,2.9442]
[1729490677762,2.9435,169.91,169.87,2.9441]
[1729490681665,2.4923,169.93,169.86,2.9443]
[1729490681666,2.9437,169.9,169.86,2.9443]
[1729490681863,2.9437,169.9,169.87,1.47290057]
[1729490682063,2.9437,169.9,169.86,2.9443]
[1729490682265,2.9437,169.9,169.87,1.47290168]
[1729490682465,2.9437,169.9,169.86,2.9443]
[1729490682660,2.9439,169.88,169.81,2.9451]
[1729490682960,2.9439,169.88,169.77,1.3213]
[1729490682961,22.13,169.9,169.82,1.4731605]
[1729490683164,2.546,169.87,169.77,2.5953]
[1729490683468,2.9448,169.84,169.78,1.47325455]
[1729490683769,2.9448,169.84,169.77,2.5953]
[1729490683770,4.42,169.86,169.79,1.47325455]
[1729490683961,2.9445,169.85,169.8,4.41845455]
[1729490684161,2.9445,169.85,169.81,1.47325455]
[1729490684469,2.9445,169.85,169.8,2.9452]
[1729490684863,2.9445,169.85,169.81,1.47330891]
[1729490685060,7.3643,169.86,169.82,2.9449]
[1729490685966,2.944,169.88,169.83,2.9447]
[1729490686167,4.42,169.87,169.83,2.9447]
[1729490686762,7.3643,169.87,169.83,2.9447]
[1729490692069,7.3643,169.87,169.78,4.24748456]
[1729490692070,4.42,169.88,169.81,2.9452]
[1729490692263,4.42,169.88,169.78,4.24748456]
[1729490692264,4.42,169.89,169.82,1.47304127]
[1729490692465,4.42,169.89,169.83,1.47304127]
[1729490692861,4.42,169.89,169.8,4.42]
[1729490692862,4.42,169.89,169.82,2.9449]
[1729490693065,4.42,169.89,169.83,1.47299078]
[1729490693363,4.42,169.89,169.8,4.42]
[1729490693364,4.42,169.89,169.84,1.47299078]
[1729490693564,4.42,169.89,169.8,4.42]
[1729490693761,8.689,169.91,169.81,1.47295178]
[1729490693964,8.689,169.91,169.82,1.47295178]
[1729490694169,8.689,169.91,169.83,1.47295178]
[1729490694471,8.689,169.91,169.86,2.9442]
[1729490694667,8.689,169.91,169.8,4.42]
[1729490694863,7.3634,169.91,169.87,2.9441]
[1729490695164,4.42,169.93,169.84,4.42]
[1729490695368,1.3398,169.99,169.91,2.9433]
[1729490695564,4.42,169.98,169.91,2.9433]
[1729490696165,4.42,169.97,169.91,2.9433]
[1729490696363,2.9427,169.96,169.91,2.9433]
[1729490696569,4.42,169.97,169.91,2.9433]
[1729490696769,4.42,169.97,169.92,2.9432]
[1729490696970,4.42,169.97,169.88,4.42]
[1729490697173,4.42,169.97,169.89,1.47252677]
[1729490697368,4.42,169.97,169.93,2.943]
[1729490698065,2.9424,169.98,169.89,2.97604563]
[1729490698066,4.42,169.98,169.89,2.97604563]
[1729490698262,4.42,169.98,169.9,1.47245287]
[1729490698460,4.42,169.98,169.91,1.47245287]
[1729490698671,4.42,169.98,169.94,2.9428]
[1729490699967,7.3622,169.98,169.94,2.9428]
[1729490702667,7.3622,169.98,169.88,4.42]
[1729490702873,2.9427,169.95,169.89,1.4724157]
[1729490703070,4.42,169.98,169.9,1.4724157]
[1729490703270,4.42,169.98,169.87,7.38709906]
[1729490703476,4.42,169.98,169.88,1.472449]
[1729490703671,2.9427,169.96,169.91,2.9434]
[1729490706478,2.9427,169.96,169.92,2.9432]
[1729490708167,2.9427,169.96,169.91,2.9434]
[1729490709679,2.9428,169.95,169.91,2.9434]
[1729490710073,4.42,169.98,169.91,2.9434]
[1729490710474,2.9427,169.96,169.91,2.9434]
[1729490715788,4.42,169.95,169.91,2.9434]
[1729490716384,4.42,169.95,169.92,2.9432]
[1729490717689,7.3628,169.95,169.9,2.9435]
[1729490717889,7.3628,169.95,169.87,4.42]
[1729490718085,7.33840307,169.95,169.88,1.47251757]
[1729490718284,7.33840307,169.95,169.85,2.6199]
[1729490718486,2.6122,169.94,169.86,1.4726612]
[1729490718688,2.9433,169.92,169.84,2.9446]
[1729490718889,4.42,169.91,169.85,1.47271385]
[1729490719190,1.3398,169.99,169.86,1.47271385]
[1729490719385,7.0322,169.98,169.9,2.9435]
[1729490720890,2.9428,169.95,169.9,2.9435]
[1729490721090,4.42,169.94,169.9,2.9435]
[1729490721285,4.42,169.94,169.82,4.42]
[1729490721489,4.42,169.94,169.88,2.9438]
[1729490721995,4.42,169.94,169.82,4.42]
[1729490722188,2.9431,169.93,169.83,1.47273424]
[1729490722389,2.9431,169.93,169.84,1.47273424]
[1729490722590,2.9431,169.93,169.85,1.47273424]
[1729490722792,2.9431,169.93,169.86,1.47273424]
[1729490722991,2.9431,169.93,169.88,2.9438]
[1729490725690,7.3631,169.93,169.88,2.9438]
[1729490726493,7.3631,169.93,169.82,4.42]
[1729490726797,7.3631,169.93,169.89,2.9438]
[1729490726993,2.6122,169.98,169.87,2.95879005]
[1729490727192,2.9429,169.95,169.91,2.9434]
[1729490728195,4.42,169.95,169.91,2.9434]
[1729490730294,4.42,169.95,169.93,2.943]
[1729490731198,4.42,169.97,169.93,2.9429]
[1729490733998,1.3398,169.99,169.87,6.82977335]
[1729490734206,4.42,169.98,169.94,2.9428]
[1729490735012,7.3622,169.98,169.94,2.9428]
[1729490735810,7.3622,169.98,169.93,2.943]
[1729490736701,2.9425,169.97,169.92,2.9432]
[1729490737102,2.9425,169.97,169.87,6.82977335]
[1729490737313,2.9425,169.97,169.88,1.47245275]
[1729490737609,2.9425,169.97,169.89,1.47245275]
[1729490737908,2.9425,169.97,169.92,2.9431]
[1729490739913,2.9425,169.97,169.87,6.82977335]
[1729490740118,2.9425,169.97,169.88,1.47245275]
[1729490740317,2.9425,169.97,169.89,1.47245275]
[1729490740517,2.9425,169.97,169.92,2.9431]
[1729490741618,4.42,169.98,169.87,6.82977335]
[1729490741816,7.3623,169.98,169.93,2.943]
[1729490742915,7.3623,169.98,169.87,6.82977335]
[1729490743120,7.3623,169.98,169.94,2.9429]
[1729490743920,2.9424,169.97,169.93,2.943]
[1729490744423,2.9424,169.97,169.87,6.82977335]
[1729490744719,2.9424,169.97,169.92,2.9432]
[1729490746221,2.9424,169.97,169.93,2.9431]
[1729490748924,4.42,169.98,169.93,2.9431]
[1729490749131,2.9424,169.97,169.93,2.9431]
[1729490751932,21.5491,170.02,169.87,6.82977335]
[1729490752130,2.9423,169.98,169.93,2.943]
[1729490752427,7.3623,169.98,169.93,2.943]
[1729490753227,4.42,169.98,169.93,2.943]
[1729490753535,2.9424,169.97,169.93,2.943]
[1729490753937,7.3623,169.98,169.93,2.943]
[1729490754629,2.9424,169.97,169.93,2.943]
[1729490755035,4.42,169.98,169.93,2.943]
[1729490755036,7.3622,169.98,169.93,2.943]
[1729490755933,7.3622,169.98,169.94,2.9428]
[1729490758143,4.42,169.98,169.94,2.9429]
[1729490758836,7.3622,169.98,169.94,2.9429]
[1729490759428,4.42,169.98,169.87,6.82977335]
[1729490759632,2.9425,169.97,169.92,2.9431]
[1729490759833,2.9425,169.97,169.87,6.82977335]
[1729490760033,4.42,169.98,169.88,1.47243794]
[1729490760338,2.9427,169.96,169.89,1.47243794]
[1729490760538,2.9427,169.96,169.91,2.9433]
[1729490760943,4.42,169.98,169.92,1.47243794]
[1729490761241,4.42,169.98,169.93,2.943]
[1729490761539,4.42,169.98,169.87,11.24977335]
[1729490761735,2.9425,169.97,169.92,2.9432]
[1729490761935,2.9425,169.97,169.93,1.47244783]
[1729490762240,2.9425,169.97,169.92,2.9432]
[1729490762441,2.9425,169.97,169.93,1.47244943]
[1729490762738,2.9425,169.97,169.87,11.24977335]
[1729490762941,2.9425,169.97,169.93,2.943]
[1729490763135,7.3623,169.98,169.87,11.24977335]
[1729490763336,2.9423,169.98,169.93,2.9429]
[1729490763531,4.42,169.97,169.93,2.9429]
[1729490763740,4.42,169.97,169.94,1.47238435]
[1729490763941,4.42,169.97,169.93,2.9429]
[1729490764146,4.42,169.97,169.94,4.41519084]
[1729490764334,4.42,169.97,169.94,2.9428]
[1729490765541,4.42,169.98,169.95,1.47225278]
[1729490765740,4.42,169.99,169.91,4.42]
[1729490765940,4.42,169.99,169.97,2.9423]
[1729490766240,2.99671907,170.04,169.91,4.42]
[1729490766543,21.5461,170.07,169.93,2.5606]
[1729490766843,7.3615,170.03,169.98,2.9421]
[1729490767045,4.42,170.03,169.93,2.5606]
[1729490767344,4.42,170.03,169.94,2.77254982]
[1729490767541,4.42,170.03,169.95,5.89194982]
[1729490767735,4.42,170.03,169.96,1.47194982]
[1729490767936,4.42,170.03,169.97,1.47194982]
[1729490768137,4.42,170.03,169.98,1.47194982]
[1729490768439,2.9416,170.02,169.96,2.9424]
[1729490769242,2.9419,170.0,169.95,2.9427]
[1729490773046,2.9421,169.99,169.95,2.9427]
[1729490773237,4.42,170.03,169.95,2.9427]
[1729490773441,4.42,170.03,169.94,2.9429]
[1729490773641,2.9422,169.99,169.95,1.47215535]
[1729490773840,2.9422,169.99,169.94,2.9429]
[1729490774042,4.42,169.99,169.95,1.47215686]
[1729490774242,4.42,169.99,169.93,2.943]
[1729490774445,4.42,169.99,169.94,1.47217031]
[1729490774745,4.42,169.99,169.95,1.47217031]
[1729490774944,4.42,169.99,169.89,2.5726]
[1729490775150,4.42,169.99,169.9,1.47235989]
[1729490775346,4.42,169.99,169.91,1.47235989]
[1729490775554,4.42,169.99,169.92,1.47235989]
[1729490775846,2.9426,169.96,169.91,2.9434]